{"text_format":"1","workbook":"xlsx","n_sheets":9,"sheets":["Home","Database","Support","Sheet1","Sheet2","Sheet3","اليومية","Rep3","reb4"],"not_rendered":{"charts":0,"images":0,"macros":1,"external_links":0,"defined_names":3,"comments":0,"pivot_tables":0},"unopened":[],"bounds":{"document_bytes":16777216,"sheet_cells":100000,"rows_first":2000,"rows_last":500,"rows_between":2000,"halvings":0,"cell_chars":16384,"cell_head_chars":4096},"cells_cut":0,"cells_raw":0,"read":"whole","date_system":"1900"}

{"sheet":"Home","index":0,"n_rows":4,"n_cols":5,"rows_kept":4,"cut":false,"hidden":true,"merged":[[3,4,5,14]]}
[]
[]
[]
[null,null,null,null,"Room Booking Form"]

{"sheet":"Database","index":1,"n_rows":4,"n_cols":25,"rows_kept":4,"cut":false,"hidden":true,"merged":[]}
["S.NO","R Card NO","Guest Name","Addres","Country","Company","Arrival","Deparue","Days","Adult","Children","Room","Room Type","Meals","ID type","ID Number","Reat P.P","Total Charges","Other Charges","Sub Total","Discount","AmountPad","Balance","status","Notes"]
[{"$f":"ROW()-1","v":1},"01-00002","Alaa","Egypt","Bahamas, The","Booking,com","2020-01-01","2020-03-01",2,1,3," 102 Standard Room","Single","B.O","Passport",123,100,200,50,250,20,220,30,"Check IN"]
[{"$f":"ROW()-1","v":2},"01-00003","Alaa Mohamed Mohamed Ali","Egypt - Aswan","American Samoa","Booking,com","2020-06-25","2020-06-28",3,1,0," 104 Standard Room","Double","ALL SOFT","Passport",123456,100,300,100,400,100,200,100,"Check IN"]
[{"$f":"ROW()-1","v":3},"01-00004","Ahmed Ali","Egypt","Aland","Booking,com","2020-06-25","2020-06-27",2,1,2," 114 Deluxe Room","Double","Bed & Brakfast","ID",1234,100,200,100,300,50,250,0,"Check IN"]

{"sheet":"Support","index":2,"n_rows":37,"n_cols":7,"rows_kept":37,"cut":false,"hidden":true,"merged":[]}
["Room","Meals","status","Room Type","Country","Combany","ID Type"]
[" 101 Standard Room","B.O","Reservation","Single","Abkhazia","Booking,com","ID"]
[" 102 Standard Room","Bed & Brakfast","Check IN","Double","Afghanistan",null,"Passport"]
[" 103 Standard Room","H.B","Check OUT",null,"Akrotiri",null,"Driver License"]
[" 104 Standard Room","F.B",null,null,"Aland"]
[" 105 Standard Room","ALL SOFT",null,null,"Albania"]
[" 106 Standard Room","ALL HARD",null,null,"Algeria"]
[" 107 Standard Room",null,null,null,"American Samoa"]
[" 108 Standard Room",null,null,null,"Andorra"]
[" 109 Standard Room",null,null,null,"Angola"]
[" 110 Standard Room",null,null,null,"Anguilla"]
[" 111 Deluxe Room",null,null,null,"Antigua and Barbuda"]
[" 112 Deluxe Room",null,null,null,"Argentina"]
[" 114 Deluxe Room",null,null,null,"Armenia"]
[" 115 Deluxe Room",null,null,null,"Aruba"]
[" 116 Deluxe Room",null,null,null,"Ascension Island"]
[" 117 Deluxe Room",null,null,null,"Australia"]
[null,null,null,null,"Austria"]
[null,null,null,null,"Azerbaijan"]
[null,null,null,null,"Bahamas, The"]
[null,null,null,null,"Bahrain"]
[null,null,null,null,"Bangladesh"]
[null,null,null,null,"Barbados"]
[null,null,null,null,"Belarus"]
[null,null,null,null,"Belgium"]
[null,null,null,null,"Belize"]
[null,null,null,null,"Benin "]
[null,null,null,null,"Bermuda"]
[null,null,null,null,"Bhutan"]
[null,null,null,null,"Bolivia"]
[null,null,null,null,"Bosnia and Herzegovina"]
[null,null,null,null,"Botswana"]
[null,null,null,null,"Brazil"]
[null,null,null,null,"Brunei"]
[null,null,null,null,"Bulgaria"]
[null,null,null,null,"Burkina Faso "]
[null,null,null,null,"Burundi"]

{"sheet":"Sheet1","index":3,"n_rows":4,"n_cols":2,"rows_kept":4,"cut":false,"hidden":false,"merged":[]}
["الايرادات","المصروفات"]
["ايراد نقدى","مصروفات عموميه"]
["تحويل على الحساب","مصروفات صيانه"]
["ايراد ايجارات"]

{"sheet":"Sheet2","index":4,"n_rows":3,"n_cols":2,"rows_kept":3,"cut":false,"hidden":false,"merged":[]}
["الايرادات","المصروفات"]
["ايراد نقدى","مصروفات عمومية"]
["تحويل على الحساب"]

{"sheet":"Sheet3","index":5,"n_rows":0,"n_cols":0,"rows_kept":0,"cut":false,"hidden":false,"merged":[]}

{"sheet":"اليومية","index":6,"n_rows":1064,"n_cols":31,"rows_kept":1064,"cut":false,"hidden":false,"merged":[[8,6,9,6],[0,0,0,1],[0,5,0,6],[1,0,1,1],[2,1,2,5],[5,5,5,6],[6,5,6,6],[8,0,9,0],[8,1,9,1],[8,2,9,2],[8,3,9,3],[8,4,8,5]]}
[]
[]
[null,null,null,null,null,null,null,null,null,null,null,null,null,null,null,null,null,null,null,null,"ايراد نقدى"]
[null,null,null,null,null,null,null,null,null,null,null,null,null,null,null,null,null,null,null,null,"ايراد بشيكات",null,null,null,null,null,null,null,null,"ايراد بشيكات","أجور عمال"]
["حوالات بنكية :",{"$f":"SUMIF(C11:C1064,\"*تحويل*\",F11:F1064)","v":7000},null,"إيـداعـات بـنـكـية :",{"$f":"SUMIF(C11:C1064,\"*ايداع*\",F11:F1064)","v":226300},"الرصيد :",{"$f":"B8-F7-E5-B5","v":16814},null,null,null,null,null,null,null,null,null,null,null,null,null,"ايداع شيك",null,null,null,null,null,null,null,null,"تحويل للحساب","مصروفات صيانة"]
["ايرادات نقدية :",{"$f":"SUMIF(C11:C1064,\"*ايراد نقدى*\",E11:E1064)","v":191427},null,"جملة مصروفات الصيانة :",{"$f":"SUMIF(C11:C1064,\"*مصروفات*\",F11:F1064)","v":14823},"جمله المصروفات :",null,null,null,null,null,null,null,null,null,null,null,null,null,null,"ايداع نقدى",null,null,null,null,null,null,null,null,"ايراد نقدى","مصروفات عامة"]
["ايرادات بشيكات :",{"$f":"SUMIF(C11:C1064,\"*ايراد بشيكات*\",E11:E1064)","v":80500},null,"جملة الرواتب المدفوعة :",{"$f":"SUMIF(C11:C1064,\"*صرف رواتب*\",F11:F1064)","v":3200},{"$f":"SUM(E6:E8)","v":21813},null,null,null,null,null,null,null,null,null,null,null,null,null,null,"تحويل للحساب",null,null,null,null,null,null,null,null,null,"خروج مستأجر"]
["جملة الايرادات :",{"$f":"B6+B7","v":271927},null,"تصفيات خروج مستاجرين :",{"$f":"SUMIF(C12:C1065,\"*خروج مستأجر*\",F12:F1065)","v":3790},"رصيد مرحل :",2000,null,null,null,null,null,null,null,null,null,null,null,null,null,"مصروفات "]
["التاريخ ","رقم السند","نوع السند","البيان","العملية",null,"الرصيد"]
[null,null,null,null,"مدين ","دائن"]
["18-9-1434",472,"ايراد نقدى","شقة رقم 18 عمارة 1",20000,null,{"$f":"IF(AND(E11=\"\",F11=\"\"),\"\",G8+F11-E11)","v":-18000}]
["18-9-1434","بدون","مصروفات","كهرباء مصاعد العمارتين",null,525,{"$f":"IF(AND(E12=\"\",F12=\"\"),\"\",G11+F12-E12)","v":-17475}]
["20-9-1434",473,"ايراد نقدى","شقة رقم 18 عمارة 2",777,null,{"$f":"IF(AND(E13=\"\",F13=\"\"),\"\",G12+F13-E13)","v":-18252}]
["20-9-1434",474,"ايراد نقدى","شقة رقم 14 عمارة 2",17500,null,{"$f":"IF(AND(E14=\"\",F14=\"\"),\"\",G13+F14-E14)","v":-35752}]
["22-9-1434",267,"مصروفات","ف كهرباء شراء لمبات ",null,60,-35692]
["25-9-1434",463,"خروج مستأجر","تصفية حساب شقة 16 ع 2",null,1300,-34392]
["25-9-1434",477,"ايراد نقدى","شقة رقم 5 عمارة 1",17000,null,-51392]
["25-9-1434",476,"ايراد بشيكات","شقة رقم 10 عمارة 1",17500,null,-68892]
["25-9-1434","بدون","ايداع شيك","شقة رقم 10 عمارة1 رقم 50002",null,17500,-51392]
["25-9-1434",464,"مصروفات","مصروفات شغل يد + سباكة وكهرباء",null,265,-51127]
["25-9-1434",3358,"مصروفات","رول دهان",null,15,-51112]
["25-9-1434",3357,"مصروفات","مواد دهان",null,339,-50773]
["25-9-1434",465,"خروج مستأجر","تصفية تأمين شقة 15 ع 2",null,1290,-49483]
["27-9-1434","بدون","ايداع نقدى","دفعة من الايجارات على حسابكم بالراجحى",null,40000,-9483]
["5-10-1434",481,"ايراد نقدى","ايجار شقة رقم 20 ع 2 مدة 53 يوم",5000,null,-14483]
["5-10-1434",480,"ايراد نقدى","غرفة مبنى رقم 2 ",1600,null,-16083]
["5-10-1434",478,"ايراد نقدى","ايجار شقة رقم 15 ع رقم 2",17500,null,-33583]
["5-10-1434",479,"ايراد نقدى","تأمين شقة رقم 15 ع رقم 2",2000,null,-35583]
["5-10-1434",467,"صرف رواتب","راتب س عن شهر رمضان",null,800,-34783]
["5-10-1434",466,"صرف رواتب","راتب ص عن شهر رمضان",null,800,-33983]
["5-10-1434",468,"تحويل للحساب","حوالتين 6 الف + الف من شقة رقم 15 ع 2 ",null,7000,-26983]
["5-10-1434",469,"مصروفات ","شفط البيارة عمارة رقم 1 شهر رمضان / يوليو",null,1400,-25583]
["5-10-1434",470,"مصروفات ","شفط البيارة عمارة رقم 2 شهر رمضان / يوليو",null,640,-24943]
["7-10-1434",483,"ايراد نقدى","شقة رقم 11 الدور 3 مبنى رقم 2",8750,null,-33693]
["7-10-1434",482,"ايراد نقدى","شقة رقم 20 الدور 6 مبنى رقم 1",17000,null,-50693]
["7-10-1434",3400,"مصروفات ","ف دهانات الجزيرة ",null,1030,-49663]
["7-10-1434",6717,"مصروفات ","مؤسسه باغلف  كالونات",null,75,-49588]
["7-10-1434",6754,"مصروفات ","مؤسسه باغلف  جبس + فرشة",null,20,-49568]
["7-10-1434",472,"مصروفات ","دهان شقة رقم 16 + 17 عمارة رقم 2",null,1600,-47968]
["7-10-1434",471,"مصروفات ","تصليح ودهان الباب شقة 16 عمارة رقم 2",null,365,-47603]
["7-10-1434",6786,"مصروفات ","رول + شكرتون عمارة 2",null,19,-47584]
["7-10-1434",474,"مصروفات ","شغل بلاط + شغل كهرباء ع ( 2 )",null,120,-47464]
["12-10-1434",484,"ايراد بشيكات","تأمين شقة رقم 18 ع رقم 2",2000,null,-49464]
["12-10-1434",485,"ايراد بشيكات","ايجار شقة رقم 18 ع رقم 2",20000,null,-69464]
["12-10-1434","بدون","ايداع شيك","ايداع شيك رقم 231 ايجار وتأمين شقة رقم 18 ع رقم 2",null,22000,-47464]
["12-10-1434","بدون","ايداع نقدى","دفعة من الايجارات على حسابكم بالراجحى",null,42000,-5464]
["12-10-1434",4921,"مصروفات ","تسليك قاعدة حمام بالاسمنت ع 2 شقة 5",null,50,-5414]
["16-10-1434",196,"ايراد نقدى","ايجار شقة رقم 8 ع رقم 2 لمدة 3 شهور سند قديم تكملة الايجار",8500,null,-13914]
["22-10-1434",487,"ايراد بشيكات","ايجار شقة رقم 1 ع رقم 1 شيك رقم 11 الراجحى ",17500,null,-31414]
["22-10-1434",489,"ايراد نقدى","ايجار شقة رقم 12 ع رقم 2 لمدة 75 يوم ",7000,null,-38414]
["25-10-1434",490,"ايراد نقدى","ايجار غرفة بعمارة 2",1600,null,-40014]
["25-10-1434","بدون","مصروفات ","فواتير الكهرباء 3 شقق + مصاعد ",null,922,-39092]
["26-10-1434","بدون","ايداع شيك","ايجار شقة رقم 1 ع رقم 1 شيك رقم 11 الراجحى ",null,17500,-21592]
["26-10-1434","بدون","ايداع نقدى","دفعة من الايجارات على حسابكم بالراجحى",null,20000,-1592]
["27-10-1434",491,"ايراد نقدى","تامين شقة رقم 16 عمارة رقم 2",2000,null,-3592]
["27-10-1434",492,"ايراد نقدى","ايجار شقة رقم 16 عمارة رقم 2",17500,null,-21092]
["27-10-1434","بدون","مصروفات ","فاتورة مياه عمارة 1 ",null,1097,-19995]
["28-10-1434",879,"مصروفات ","تجديد اقامة س+ رسوم بريد",null,450,-19545]
["2-11-1434",252,"مصروفات ","اصلاح مكيف + غسيل غرفة نواز عمارة 1",null,150,-19395]
["2-11-1434",475,"صرف رواتب","راتب شهر شوال 1434 هـ ن",null,800,-18595]
["2-11-1434",476,"صرف رواتب","راتب شهر شوال 1434 هـ  س",null,800,-17795]
["2-11-1434",477,"مصروفات ","سند اصلاح بانيو + كرسى حمام + سيلكون شقة 20 عمارة 2",null,256,-17539]
["7-11-1434",493,"ايراد نقدى","ايجار شقة رقم 19 عمارة رقم 2",17000,null,-34539]
["7-11-1434",478,"مصروفات ","شفط البيارة عمارة رقم 2 شهر اغسطس",null,800,-33739]
["7-11-1434",479,"مصروفات ","شفط البيارة عمارة رقم1 شهر اغسطس",null,1400,-32339]
["10-11-1434",3642,"مصروفات ","فاتورة الجزيرة للدهان 2",null,975,-31364]
["10-11-1434",480,"مصروفات ","اصلاح مكيف شقة 8 عمارة 2 + دهان شقة 20 عمارة 2 كاملة + مجلس شقة 4 عمارة 1",null,1050,-30314]
["10-11-1434",494,"ايراد نقدى","ايجار شقة 6 عمارة 2 ",17500,null,-47814]
["10-11-1434",495,"ايراد بشيكات","ايجار شقة 2 عمارة 2 شيك رقم 101 ",17500,null,-65314]
["10-11-1434","بدون","ايداع نقدى","دفعة من الايجارات على حسابكم بالراجحى",null,49800,-15514]
["10-11-1434","بدون","ايداع شيك","شيك رقم 101 عن شقة رقم 2 عمارة رقم 2",null,17500,1986]
["1435/06/07",5555,"تحويل للحساب","تحويل بنكي (الراجحي) ايجار الشقة رقم 66",30000,null,-28014]
["1435/06/07",3232,"أجور عمال","راتب العامل 0س) عن شهر ربيع ثان",null,2000,-26014]
["1435/06/07",5555,"ايراد بشيكات","ايجار الشقة رقم 7 بشيك رقم 43 البنك الاهلي التجاري",6000,null,-32014]
["1435/06/07",4343,"مصروفات صيانة","صيانة الاسانسير ",null,1200,-30814]
["1435/06/07",666," ايراد نقدى","ايجار الشقة رقم 9 مستحق عن شهر جماد أول",7200,null,-38014]
["1435/06/07",444," ايراد نقدى","ايجار الشقة رقم 13 عن شهر جماد اول",6000,null,-44014]
["1435/06/07",6666,"خروج مستأجر","تصفية حساب مستاجر الشقة رقم 27 نقدا",null,1200,{"$f":"IF(AND(E78=\"\",F78=\"\"),\"\",G77+F78-E78)","v":-42814}]
[]
[]
[]
[]
[]
[]
[null,null,null,null,null,null,""]
[null,null,null,null,null,null,""]
[null,null,null,null,null,null,""]
[null,null,null,null,null,null,""]
[null,null,null,null,null,null,""]
[null,null,null,null,null,null,""]
[null,null,null,null,null,null,""]
[null,null,null,null,null,null,""]
[null,null,null,null,null,null,""]
[null,null,null,null,null,null,""]
[null,null,null,null,null,null,""]
[null,null,null,null,null,null,""]
[null,null,null,null,null,null,""]
[null,null,null,null,null,null,""]
[null,null,null,null,null,null,""]
[null,null,null,null,null,null,""]
[null,null,null,null,null,null,""]
[null,null,null,null,null,null,""]
[null,null,null,null,null,null,""]
[null,null,null,null,null,null,""]
[null,null,null,null,null,null,""]
[null,null,null,null,null,null,""]
[null,null,null,null,null,null,""]
[null,null,null,null,null,null,""]
[null,null,null,null,null,null,""]
[null,null,null,null,null,null,""]
[null,null,null,null,null,null,""]
[null,null,null,null,null,null,""]
[null,null,null,null,null,null,""]
[null,null,null,null,null,null,""]
[null,null,null,null,null,null,""]
[null,null,null,null,null,null,""]
[null,null,null,null,null,null,""]
[null,null,null,null,null,null,""]
[null,null,null,null,null,null,""]
[null,null,null,null,null,null,""]
[null,null,null,null,null,null,""]
[null,null,null,null,null,null,""]
[null,null,null,null,null,null,""]
[null,null,null,null,null,null,""]
[null,null,null,null,null,null,""]
[null,null,null,null,null,null,""]
[null,null,null,null,null,null,""]
[null,null,null,null,null,null,""]
[null,null,null,null,null,null,""]
[null,null,null,null,null,null,""]
[null,null,null,null,null,null,""]
[null,null,null,null,null,null,""]
[null,null,null,null,null,null,""]
[null,null,null,null,null,null,""]
[null,null,null,null,null,null,""]
[null,null,null,null,null,null,""]
[null,null,null,null,null,null,""]
[null,null,null,null,null,null,""]
[null,null,null,null,null,null,""]
[null,null,null,null,null,null,""]
[null,null,null,null,null,null,""]
[null,null,null,null,null,null,{"$f":"IF(AND(E142=\"\",F142=\"\"),\"\",G141+F142-E142)","v":""}]
[null,null,null,null,null,null,""]
[null,null,null,null,null,null,""]
[null,null,null,null,null,null,""]
[null,null,null,null,null,null,""]
[null,null,null,null,null,null,""]
[null,null,null,null,null,null,""]
[null,null,null,null,null,null,""]
[null,null,null,null,null,null,""]
[null,null,null,null,null,null,""]
[null,null,null,null,null,null,""]
[null,null,null,null,null,null,""]
[null,null,null,null,null,null,""]
[null,null,null,null,null,null,""]
[null,null,null,null,null,null,""]
[null,null,null,null,null,null,""]
[null,null,null,null,null,null,""]
[null,null,null,null,null,null,""]
[null,null,null,null,null,null,""]
[null,null,null,null,null,null,""]
[null,null,null,null,null,null,""]
[null,null,null,null,null,null,""]
[null,null,null,null,null,null,""]
[null,null,null,null,null,null,""]
[null,null,null,null,null,null,""]
[null,null,null,null,null,null,""]
[null,null,null,null,null,null,""]
[null,null,null,null,null,null,""]
[null,null,null,null,null,null,""]
[null,null,null,null,null,null,""]
[null,null,null,null,null,null,""]
[null,null,null,null,null,null,""]
[null,null,null,null,null,null,""]
[null,null,null,null,null,null,""]
[null,null,null,null,null,null,""]
[null,null,null,null,null,null,""]
[null,null,null,null,null,null,""]
[null,null,null,null,null,null,""]
[null,null,null,null,null,null,""]
[null,null,null,null,null,null,""]
[null,null,null,null,null,null,""]
[null,null,null,null,null,null,""]
[null,null,null,null,null,null,""]
[null,null,null,null,null,null,""]
[null,null,null,null,null,null,""]
[null,null,null,null,null,null,""]
[null,null,null,null,null,null,""]
[null,null,null,null,null,null,""]
[null,null,null,null,null,null,""]
[null,null,null,null,null,null,""]
[null,null,null,null,null,null,""]
[null,null,null,null,null,null,""]
[null,null,null,null,null,null,""]
[null,null,null,null,null,null,""]
[null,null,null,null,null,null,""]
[null,null,null,null,null,null,""]
[null,null,null,null,null,null,""]
[null,null,null,null,null,null,""]
[null,null,null,null,null,null,""]
[null,null,null,null,null,null,""]
[null,null,null,null,null,null,""]
[null,null,null,null,null,null,""]
[null,null,null,null,null,null,""]
[null,null,null,null,null,null,""]
[null,null,null,null,null,null,{"$f":"IF(AND(E206=\"\",F206=\"\"),\"\",G205+F206-E206)","v":""}]
[null,null,null,null,null,null,""]
[null,null,null,null,null,null,""]
[null,null,null,null,null,null,""]
[null,null,null,null,null,null,""]
[null,null,null,null,null,null,""]
[null,null,null,null,null,null,""]
[null,null,null,null,null,null,""]
[null,null,null,null,null,null,""]
[null,null,null,null,null,null,""]
[null,null,null,null,null,null,""]
[null,null,null,null,null,null,""]
[null,null,null,null,null,null,""]
[null,null,null,null,null,null,""]
[null,null,null,null,null,null,""]
[null,null,null,null,null,null,""]
[null,null,null,null,null,null,""]
[null,null,null,null,null,null,""]
[null,null,null,null,null,null,""]
[null,null,null,null,null,null,""]
[null,null,null,null,null,null,""]
[null,null,null,null,null,null,""]
[null,null,null,null,null,null,""]
[null,null,null,null,null,null,""]
[null,null,null,null,null,null,""]
[null,null,null,null,null,null,""]
[null,null,null,null,null,null,""]
[null,null,null,null,null,null,""]
[null,null,null,null,null,null,""]
[null,null,null,null,null,null,""]
[null,null,null,null,null,null,""]
[null,null,null,null,null,null,""]
[null,null,null,null,null,null,""]
[null,null,null,null,null,null,""]
[null,null,null,null,null,null,""]
[null,null,null,null,null,null,""]
[null,null,null,null,null,null,""]
[null,null,null,null,null,null,""]
[null,null,null,null,null,null,""]
[null,null,null,null,null,null,""]
[null,null,null,null,null,null,""]
[null,null,null,null,null,null,""]
[null,null,null,null,null,null,""]
[null,null,null,null,null,null,""]
[null,null,null,null,null,null,""]
[null,null,null,null,null,null,""]
[null,null,null,null,null,null,""]
[null,null,null,null,null,null,""]
[null,null,null,null,null,null,""]
[null,null,null,null,null,null,""]
[null,null,null,null,null,null,""]
[null,null,null,null,null,null,""]
[null,null,null,null,null,null,""]
[null,null,null,null,null,null,""]
[null,null,null,null,null,null,""]
[null,null,null,null,null,null,""]
[null,null,null,null,null,null,""]
[null,null,null,null,null,null,""]
[null,null,null,null,null,null,""]
[null,null,null,null,null,null,""]
[null,null,null,null,null,null,""]
[null,null,null,null,null,null,""]
[null,null,null,null,null,null,""]
[null,null,null,null,null,null,""]
[null,null,null,null,null,null,{"$f":"IF(AND(E270=\"\",F270=\"\"),\"\",G269+F270-E270)","v":""}]
[null,null,null,null,null,null,""]
[null,null,null,null,null,null,""]
[null,null,null,null,null,null,""]
[null,null,null,null,null,null,""]
[null,null,null,null,null,null,""]
[null,null,null,null,null,null,""]
[null,null,null,null,null,null,""]
[null,null,null,null,null,null,""]
[null,null,null,null,null,null,""]
[null,null,null,null,null,null,""]
[null,null,null,null,null,null,""]
[null,null,null,null,null,null,""]
[null,null,null,null,null,null,""]
[null,null,null,null,null,null,""]
[null,null,null,null,null,null,""]
[null,null,null,null,null,null,""]
[null,null,null,null,null,null,""]
[null,null,null,null,null,null,""]
[null,null,null,null,null,null,""]
[null,null,null,null,null,null,""]
[null,null,null,null,null,null,""]
[null,null,null,null,null,null,""]
[null,null,null,null,null,null,""]
[null,null,null,null,null,null,""]
[null,null,null,null,null,null,""]
[null,null,null,null,null,null,""]
[null,null,null,null,null,null,""]
[null,null,null,null,null,null,""]
[null,null,null,null,null,null,""]
[null,null,null,null,null,null,""]
[null,null,null,null,null,null,""]
[null,null,null,null,null,null,""]
[null,null,null,null,null,null,""]
[null,null,null,null,null,null,""]
[null,null,null,null,null,null,""]
[null,null,null,null,null,null,""]
[null,null,null,null,null,null,""]
[null,null,null,null,null,null,""]
[null,null,null,null,null,null,""]
[null,null,null,null,null,null,""]
[null,null,null,null,null,null,""]
[null,null,null,null,null,null,""]
[null,null,null,null,null,null,""]
[null,null,null,null,null,null,""]
[null,null,null,null,null,null,""]
[null,null,null,null,null,null,""]
[null,null,null,null,null,null,""]
[null,null,null,null,null,null,""]
[null,null,null,null,null,null,""]
[null,null,null,null,null,null,""]
[null,null,null,null,null,null,""]
[null,null,null,null,null,null,""]
[null,null,null,null,null,null,""]
[null,null,null,null,null,null,""]
[null,null,null,null,null,null,""]
[null,null,null,null,null,null,""]
[null,null,null,null,null,null,""]
[null,null,null,null,null,null,""]
[null,null,null,null,null,null,""]
[null,null,null,null,null,null,""]
[null,null,null,null,null,null,""]
[null,null,null,null,null,null,""]
[null,null,null,null,null,null,""]
[null,null,null,null,null,null,{"$f":"IF(AND(E334=\"\",F334=\"\"),\"\",G333+F334-E334)","v":""}]
[null,null,null,null,null,null,""]
[null,null,null,null,null,null,""]
[null,null,null,null,null,null,""]
[null,null,null,null,null,null,""]
[null,null,null,null,null,null,""]
[null,null,null,null,null,null,""]
[null,null,null,null,null,null,""]
[null,null,null,null,null,null,""]
[null,null,null,null,null,null,""]
[null,null,null,null,null,null,""]
[null,null,null,null,null,null,""]
[null,null,null,null,null,null,""]
[null,null,null,null,null,null,""]
[null,null,null,null,null,null,""]
[null,null,null,null,null,null,""]
[null,null,null,null,null,null,""]
[null,null,null,null,null,null,""]
[null,null,null,null,null,null,""]
[null,null,null,null,null,null,""]
[null,null,null,null,null,null,""]
[null,null,null,null,null,null,""]
[null,null,null,null,null,null,""]
[null,null,null,null,null,null,""]
[null,null,null,null,null,null,""]
[null,null,null,null,null,null,""]
[null,null,null,null,null,null,""]
[null,null,null,null,null,null,""]
[null,null,null,null,null,null,""]
[null,null,null,null,null,null,""]
[null,null,null,null,null,null,""]
[null,null,null,null,null,null,""]
[null,null,null,null,null,null,""]
[null,null,null,null,null,null,""]
[null,null,null,null,null,null,""]
[null,null,null,null,null,null,""]
[null,null,null,null,null,null,""]
[null,null,null,null,null,null,""]
[null,null,null,null,null,null,""]
[null,null,null,null,null,null,""]
[null,null,null,null,null,null,""]
[null,null,null,null,null,null,""]
[null,null,null,null,null,null,""]
[null,null,null,null,null,null,""]
[null,null,null,null,null,null,""]
[null,null,null,null,null,null,""]
[null,null,null,null,null,null,""]
[null,null,null,null,null,null,""]
[null,null,null,null,null,null,""]
[null,null,null,null,null,null,""]
[null,null,null,null,null,null,""]
[null,null,null,null,null,null,""]
[null,null,null,null,null,null,""]
[null,null,null,null,null,null,""]
[null,null,null,null,null,null,""]
[null,null,null,null,null,null,""]
[null,null,null,null,null,null,""]
[null,null,null,null,null,null,""]
[null,null,null,null,null,null,""]
[null,null,null,null,null,null,""]
[null,null,null,null,null,null,""]
[null,null,null,null,null,null,""]
[null,null,null,null,null,null,""]
[null,null,null,null,null,null,""]
[null,null,null,null,null,null,{"$f":"IF(AND(E398=\"\",F398=\"\"),\"\",G397+F398-E398)","v":""}]
[null,null,null,null,null,null,""]
[null,null,null,null,null,null,""]
[null,null,null,null,null,null,""]
[null,null,null,null,null,null,""]
[null,null,null,null,null,null,""]
[null,null,null,null,null,null,""]
[null,null,null,null,null,null,""]
[null,null,null,null,null,null,""]
[null,null,null,null,null,null,""]
[null,null,null,null,null,null,""]
[null,null,null,null,null,null,""]
[null,null,null,null,null,null,""]
[null,null,null,null,null,null,""]
[null,null,null,null,null,null,""]
[null,null,null,null,null,null,""]
[null,null,null,null,null,null,""]
[null,null,null,null,null,null,""]
[null,null,null,null,null,null,""]
[null,null,null,null,null,null,""]
[null,null,null,null,null,null,""]
[null,null,null,null,null,null,""]
[null,null,null,null,null,null,""]
[null,null,null,null,null,null,""]
[null,null,null,null,null,null,""]
[null,null,null,null,null,null,""]
[null,null,null,null,null,null,""]
[null,null,null,null,null,null,""]
[null,null,null,null,null,null,""]
[null,null,null,null,null,null,""]
[null,null,null,null,null,null,""]
[null,null,null,null,null,null,""]
[null,null,null,null,null,null,""]
[null,null,null,null,null,null,""]
[null,null,null,null,null,null,""]
[null,null,null,null,null,null,""]
[null,null,null,null,null,null,""]
[null,null,null,null,null,null,""]
[null,null,null,null,null,null,""]
[null,null,null,null,null,null,""]
[null,null,null,null,null,null,""]
[null,null,null,null,null,null,""]
[null,null,null,null,null,null,""]
[null,null,null,null,null,null,""]
[null,null,null,null,null,null,""]
[null,null,null,null,null,null,""]
[null,null,null,null,null,null,""]
[null,null,null,null,null,null,""]
[null,null,null,null,null,null,""]
[null,null,null,null,null,null,""]
[null,null,null,null,null,null,""]
[null,null,null,null,null,null,""]
[null,null,null,null,null,null,""]
[null,null,null,null,null,null,""]
[null,null,null,null,null,null,""]
[null,null,null,null,null,null,""]
[null,null,null,null,null,null,""]
[null,null,null,null,null,null,""]
[null,null,null,null,null,null,""]
[null,null,null,null,null,null,""]
[null,null,null,null,null,null,""]
[null,null,null,null,null,null,""]
[null,null,null,null,null,null,""]
[null,null,null,null,null,null,""]
[null,null,null,null,null,null,{"$f":"IF(AND(E462=\"\",F462=\"\"),\"\",G461+F462-E462)","v":""}]
[null,null,null,null,null,null,""]
[null,null,null,null,null,null,""]
[null,null,null,null,null,null,""]
[null,null,null,null,null,null,""]
[null,null,null,null,null,null,""]
[null,null,null,null,null,null,""]
[null,null,null,null,null,null,""]
[null,null,null,null,null,null,""]
[null,null,null,null,null,null,""]
[null,null,null,null,null,null,""]
[null,null,null,null,null,null,""]
[null,null,null,null,null,null,""]
[null,null,null,null,null,null,""]
[null,null,null,null,null,null,""]
[null,null,null,null,null,null,""]
[null,null,null,null,null,null,""]
[null,null,null,null,null,null,""]
[null,null,null,null,null,null,""]
[null,null,null,null,null,null,""]
[null,null,null,null,null,null,""]
[null,null,null,null,null,null,""]
[null,null,null,null,null,null,""]
[null,null,null,null,null,null,""]
[null,null,null,null,null,null,""]
[null,null,null,null,null,null,""]
[null,null,null,null,null,null,""]
[null,null,null,null,null,null,""]
[null,null,null,null,null,null,""]
[null,null,null,null,null,null,""]
[null,null,null,null,null,null,""]
[null,null,null,null,null,null,""]
[null,null,null,null,null,null,""]
[null,null,null,null,null,null,""]
[null,null,null,null,null,null,""]
[null,null,null,null,null,null,""]
[null,null,null,null,null,null,""]
[null,null,null,null,null,null,""]
[null,null,null,null,null,null,""]
[null,null,null,null,null,null,""]
[null,null,null,null,null,null,""]
[null,null,null,null,null,null,""]
[null,null,null,null,null,null,""]
[null,null,null,null,null,null,""]
[null,null,null,null,null,null,""]
[null,null,null,null,null,null,""]
[null,null,null,null,null,null,""]
[null,null,null,null,null,null,""]
[null,null,null,null,null,null,""]
[null,null,null,null,null,null,""]
[null,null,null,null,null,null,""]
[null,null,null,null,null,null,""]
[null,null,null,null,null,null,""]
[null,null,null,null,null,null,""]
[null,null,null,null,null,null,""]
[null,null,null,null,null,null,""]
[null,null,null,null,null,null,""]
[null,null,null,null,null,null,""]
[null,null,null,null,null,null,""]
[null,null,null,null,null,null,""]
[null,null,null,null,null,null,""]
[null,null,null,null,null,null,""]
[null,null,null,null,null,null,""]
[null,null,null,null,null,null,""]
[null,null,null,null,null,null,{"$f":"IF(AND(E526=\"\",F526=\"\"),\"\",G525+F526-E526)","v":""}]
[null,null,null,null,null,null,""]
[null,null,null,null,null,null,""]
[null,null,null,null,null,null,""]
[null,null,null,null,null,null,""]
[null,null,null,null,null,null,""]
[null,null,null,null,null,null,""]
[null,null,null,null,null,null,""]
[null,null,null,null,null,null,""]
[null,null,null,null,null,null,""]
[null,null,null,null,null,null,""]
[null,null,null,null,null,null,""]
[null,null,null,null,null,null,""]
[null,null,null,null,null,null,""]
[null,null,null,null,null,null,""]
[null,null,null,null,null,null,""]
[null,null,null,null,null,null,""]
[null,null,null,null,null,null,""]
[null,null,null,null,null,null,""]
[null,null,null,null,null,null,""]
[null,null,null,null,null,null,""]
[null,null,null,null,null,null,""]
[null,null,null,null,null,null,""]
[null,null,null,null,null,null,""]
[null,null,null,null,null,null,""]
[null,null,null,null,null,null,""]
[null,null,null,null,null,null,""]
[null,null,null,null,null,null,""]
[null,null,null,null,null,null,""]
[null,null,null,null,null,null,""]
[null,null,null,null,null,null,""]
[null,null,null,null,null,null,""]
[null,null,null,null,null,null,""]
[null,null,null,null,null,null,""]
[null,null,null,null,null,null,""]
[null,null,null,null,null,null,""]
[null,null,null,null,null,null,""]
[null,null,null,null,null,null,""]
[null,null,null,null,null,null,""]
[null,null,null,null,null,null,""]
[null,null,null,null,null,null,""]
[null,null,null,null,null,null,""]
[null,null,null,null,null,null,""]
[null,null,null,null,null,null,""]
[null,null,null,null,null,null,""]
[null,null,null,null,null,null,""]
[null,null,null,null,null,null,""]
[null,null,null,null,null,null,""]
[null,null,null,null,null,null,""]
[null,null,null,null,null,null,""]
[null,null,null,null,null,null,""]
[null,null,null,null,null,null,""]
[null,null,null,null,null,null,""]
[null,null,null,null,null,null,""]
[null,null,null,null,null,null,""]
[null,null,null,null,null,null,""]
[null,null,null,null,null,null,""]
[null,null,null,null,null,null,""]
[null,null,null,null,null,null,""]
[null,null,null,null,null,null,""]
[null,null,null,null,null,null,""]
[null,null,null,null,null,null,""]
[null,null,null,null,null,null,""]
[null,null,null,null,null,null,""]
[null,null,null,null,null,null,{"$f":"IF(AND(E590=\"\",F590=\"\"),\"\",G589+F590-E590)","v":""}]
[null,null,null,null,null,null,""]
[null,null,null,null,null,null,""]
[null,null,null,null,null,null,""]
[null,null,null,null,null,null,""]
[null,null,null,null,null,null,""]
[null,null,null,null,null,null,""]
[null,null,null,null,null,null,""]
[null,null,null,null,null,null,""]
[null,null,null,null,null,null,""]
[null,null,null,null,null,null,""]
[null,null,null,null,null,null,""]
[null,null,null,null,null,null,""]
[null,null,null,null,null,null,""]
[null,null,null,null,null,null,""]
[null,null,null,null,null,null,""]
[null,null,null,null,null,null,""]
[null,null,null,null,null,null,""]
[null,null,null,null,null,null,""]
[null,null,null,null,null,null,""]
[null,null,null,null,null,null,""]
[null,null,null,null,null,null,""]
[null,null,null,null,null,null,""]
[null,null,null,null,null,null,""]
[null,null,null,null,null,null,""]
[null,null,null,null,null,null,""]
[null,null,null,null,null,null,""]
[null,null,null,null,null,null,""]
[null,null,null,null,null,null,""]
[null,null,null,null,null,null,""]
[null,null,null,null,null,null,""]
[null,null,null,null,null,null,""]
[null,null,null,null,null,null,""]
[null,null,null,null,null,null,""]
[null,null,null,null,null,null,""]
[null,null,null,null,null,null,""]
[null,null,null,null,null,null,""]
[null,null,null,null,null,null,""]
[null,null,null,null,null,null,""]
[null,null,null,null,null,null,""]
[null,null,null,null,null,null,""]
[null,null,null,null,null,null,""]
[null,null,null,null,null,null,""]
[null,null,null,null,null,null,""]
[null,null,null,null,null,null,""]
[null,null,null,null,null,null,""]
[null,null,null,null,null,null,""]
[null,null,null,null,null,null,""]
[null,null,null,null,null,null,""]
[null,null,null,null,null,null,""]
[null,null,null,null,null,null,""]
[null,null,null,null,null,null,""]
[null,null,null,null,null,null,""]
[null,null,null,null,null,null,""]
[null,null,null,null,null,null,""]
[null,null,null,null,null,null,""]
[null,null,null,null,null,null,""]
[null,null,null,null,null,null,""]
[null,null,null,null,null,null,""]
[null,null,null,null,null,null,""]
[null,null,null,null,null,null,""]
[null,null,null,null,null,null,""]
[null,null,null,null,null,null,""]
[null,null,null,null,null,null,""]
[null,null,null,null,null,null,{"$f":"IF(AND(E654=\"\",F654=\"\"),\"\",G653+F654-E654)","v":""}]
[null,null,null,null,null,null,""]
[null,null,null,null,null,null,""]
[null,null,null,null,null,null,""]
[null,null,null,null,null,null,""]
[null,null,null,null,null,null,""]
[null,null,null,null,null,null,""]
[null,null,null,null,null,null,""]
[null,null,null,null,null,null,""]
[null,null,null,null,null,null,""]
[null,null,null,null,null,null,""]
[null,null,null,null,null,null,""]
[null,null,null,null,null,null,""]
[null,null,null,null,null,null,""]
[null,null,null,null,null,null,""]
[null,null,null,null,null,null,""]
[null,null,null,null,null,null,""]
[null,null,null,null,null,null,""]
[null,null,null,null,null,null,""]
[null,null,null,null,null,null,""]
[null,null,null,null,null,null,""]
[null,null,null,null,null,null,""]
[null,null,null,null,null,null,""]
[null,null,null,null,null,null,""]
[null,null,null,null,null,null,""]
[null,null,null,null,null,null,""]
[null,null,null,null,null,null,""]
[null,null,null,null,null,null,""]
[null,null,null,null,null,null,""]
[null,null,null,null,null,null,""]
[null,null,null,null,null,null,""]
[null,null,null,null,null,null,""]
[null,null,null,null,null,null,""]
[null,null,null,null,null,null,""]
[null,null,null,null,null,null,""]
[null,null,null,null,null,null,""]
[null,null,null,null,null,null,""]
[null,null,null,null,null,null,""]
[null,null,null,null,null,null,""]
[null,null,null,null,null,null,""]
[null,null,null,null,null,null,""]
[null,null,null,null,null,null,""]
[null,null,null,null,null,null,""]
[null,null,null,null,null,null,""]
[null,null,null,null,null,null,""]
[null,null,null,null,null,null,""]
[null,null,null,null,null,null,""]
[null,null,null,null,null,null,""]
[null,null,null,null,null,null,""]
[null,null,null,null,null,null,""]
[null,null,null,null,null,null,""]
[null,null,null,null,null,null,""]
[null,null,null,null,null,null,""]
[null,null,null,null,null,null,""]
[null,null,null,null,null,null,""]
[null,null,null,null,null,null,""]
[null,null,null,null,null,null,""]
[null,null,null,null,null,null,""]
[null,null,null,null,null,null,""]
[null,null,null,null,null,null,""]
[null,null,null,null,null,null,""]
[null,null,null,null,null,null,""]
[null,null,null,null,null,null,""]
[null,null,null,null,null,null,""]
[null,null,null,null,null,null,{"$f":"IF(AND(E718=\"\",F718=\"\"),\"\",G717+F718-E718)","v":""}]
[null,null,null,null,null,null,""]
[null,null,null,null,null,null,""]
[null,null,null,null,null,null,""]
[null,null,null,null,null,null,""]
[null,null,null,null,null,null,""]
[null,null,null,null,null,null,""]
[null,null,null,null,null,null,""]
[null,null,null,null,null,null,""]
[null,null,null,null,null,null,""]
[null,null,null,null,null,null,""]
[null,null,null,null,null,null,""]
[null,null,null,null,null,null,""]
[null,null,null,null,null,null,""]
[null,null,null,null,null,null,""]
[null,null,null,null,null,null,""]
[null,null,null,null,null,null,""]
[null,null,null,null,null,null,""]
[null,null,null,null,null,null,""]
[null,null,null,null,null,null,""]
[null,null,null,null,null,null,""]
[null,null,null,null,null,null,""]
[null,null,null,null,null,null,""]
[null,null,null,null,null,null,""]
[null,null,null,null,null,null,""]
[null,null,null,null,null,null,""]
[null,null,null,null,null,null,""]
[null,null,null,null,null,null,""]
[null,null,null,null,null,null,""]
[null,null,null,null,null,null,""]
[null,null,null,null,null,null,""]
[null,null,null,null,null,null,""]
[null,null,null,null,null,null,""]
[null,null,null,null,null,null,""]
[null,null,null,null,null,null,""]
[null,null,null,null,null,null,""]
[null,null,null,null,null,null,""]
[null,null,null,null,null,null,""]
[null,null,null,null,null,null,""]
[null,null,null,null,null,null,""]
[null,null,null,null,null,null,""]
[null,null,null,null,null,null,""]
[null,null,null,null,null,null,""]
[null,null,null,null,null,null,""]
[null,null,null,null,null,null,""]
[null,null,null,null,null,null,""]
[null,null,null,null,null,null,""]
[null,null,null,null,null,null,""]
[null,null,null,null,null,null,""]
[null,null,null,null,null,null,""]
[null,null,null,null,null,null,""]
[null,null,null,null,null,null,""]
[null,null,null,null,null,null,""]
[null,null,null,null,null,null,""]
[null,null,null,null,null,null,""]
[null,null,null,null,null,null,""]
[null,null,null,null,null,null,""]
[null,null,null,null,null,null,""]
[null,null,null,null,null,null,""]
[null,null,null,null,null,null,""]
[null,null,null,null,null,null,""]
[null,null,null,null,null,null,""]
[null,null,null,null,null,null,""]
[null,null,null,null,null,null,""]
[null,null,null,null,null,null,{"$f":"IF(AND(E782=\"\",F782=\"\"),\"\",G781+F782-E782)","v":""}]
[null,null,null,null,null,null,""]
[null,null,null,null,null,null,""]
[null,null,null,null,null,null,""]
[null,null,null,null,null,null,""]
[null,null,null,null,null,null,""]
[null,null,null,null,null,null,""]
[null,null,null,null,null,null,""]
[null,null,null,null,null,null,""]
[null,null,null,null,null,null,""]
[null,null,null,null,null,null,""]
[null,null,null,null,null,null,""]
[null,null,null,null,null,null,""]
[null,null,null,null,null,null,""]
[null,null,null,null,null,null,""]
[null,null,null,null,null,null,""]
[null,null,null,null,null,null,""]
[null,null,null,null,null,null,""]
[null,null,null,null,null,null,""]
[null,null,null,null,null,null,""]
[null,null,null,null,null,null,""]
[null,null,null,null,null,null,""]
[null,null,null,null,null,null,""]
[null,null,null,null,null,null,""]
[null,null,null,null,null,null,""]
[null,null,null,null,null,null,""]
[null,null,null,null,null,null,""]
[null,null,null,null,null,null,""]
[null,null,null,null,null,null,""]
[null,null,null,null,null,null,""]
[null,null,null,null,null,null,""]
[null,null,null,null,null,null,""]
[null,null,null,null,null,null,""]
[null,null,null,null,null,null,""]
[null,null,null,null,null,null,""]
[null,null,null,null,null,null,""]
[null,null,null,null,null,null,""]
[null,null,null,null,null,null,""]
[null,null,null,null,null,null,""]
[null,null,null,null,null,null,""]
[null,null,null,null,null,null,""]
[null,null,null,null,null,null,""]
[null,null,null,null,null,null,""]
[null,null,null,null,null,null,""]
[null,null,null,null,null,null,""]
[null,null,null,null,null,null,""]
[null,null,null,null,null,null,""]
[null,null,null,null,null,null,""]
[null,null,null,null,null,null,""]
[null,null,null,null,null,null,""]
[null,null,null,null,null,null,""]
[null,null,null,null,null,null,""]
[null,null,null,null,null,null,""]
[null,null,null,null,null,null,""]
[null,null,null,null,null,null,""]
[null,null,null,null,null,null,""]
[null,null,null,null,null,null,""]
[null,null,null,null,null,null,""]
[null,null,null,null,null,null,""]
[null,null,null,null,null,null,""]
[null,null,null,null,null,null,""]
[null,null,null,null,null,null,""]
[null,null,null,null,null,null,""]
[null,null,null,null,null,null,""]
[null,null,null,null,null,null,{"$f":"IF(AND(E846=\"\",F846=\"\"),\"\",G845+F846-E846)","v":""}]
[null,null,null,null,null,null,""]
[null,null,null,null,null,null,""]
[null,null,null,null,null,null,""]
[null,null,null,null,null,null,""]
[null,null,null,null,null,null,""]
[null,null,null,null,null,null,""]
[null,null,null,null,null,null,""]
[null,null,null,null,null,null,""]
[null,null,null,null,null,null,""]
[null,null,null,null,null,null,""]
[null,null,null,null,null,null,""]
[null,null,null,null,null,null,""]
[null,null,null,null,null,null,""]
[null,null,null,null,null,null,""]
[null,null,null,null,null,null,""]
[null,null,null,null,null,null,""]
[null,null,null,null,null,null,""]
[null,null,null,null,null,null,""]
[null,null,null,null,null,null,""]
[null,null,null,null,null,null,""]
[null,null,null,null,null,null,""]
[null,null,null,null,null,null,""]
[null,null,null,null,null,null,""]
[null,null,null,null,null,null,""]
[null,null,null,null,null,null,""]
[null,null,null,null,null,null,""]
[null,null,null,null,null,null,""]
[null,null,null,null,null,null,""]
[null,null,null,null,null,null,""]
[null,null,null,null,null,null,""]
[null,null,null,null,null,null,""]
[null,null,null,null,null,null,""]
[null,null,null,null,null,null,""]
[null,null,null,null,null,null,""]
[null,null,null,null,null,null,""]
[null,null,null,null,null,null,""]
[null,null,null,null,null,null,""]
[null,null,null,null,null,null,""]
[null,null,null,null,null,null,""]
[null,null,null,null,null,null,""]
[null,null,null,null,null,null,""]
[null,null,null,null,null,null,""]
[null,null,null,null,null,null,""]
[null,null,null,null,null,null,""]
[null,null,null,null,null,null,""]
[null,null,null,null,null,null,""]
[null,null,null,null,null,null,""]
[null,null,null,null,null,null,""]
[null,null,null,null,null,null,""]
[null,null,null,null,null,null,""]
[null,null,null,null,null,null,""]
[null,null,null,null,null,null,""]
[null,null,null,null,null,null,""]
[null,null,null,null,null,null,""]
[null,null,null,null,null,null,""]
[null,null,null,null,null,null,""]
[null,null,null,null,null,null,""]
[null,null,null,null,null,null,""]
[null,null,null,null,null,null,""]
[null,null,null,null,null,null,""]
[null,null,null,null,null,null,""]
[null,null,null,null,null,null,""]
[null,null,null,null,null,null,""]
[null,null,null,null,null,null,{"$f":"IF(AND(E910=\"\",F910=\"\"),\"\",G909+F910-E910)","v":""}]
[null,null,null,null,null,null,""]
[null,null,null,null,null,null,""]
[null,null,null,null,null,null,""]
[null,null,null,null,null,null,""]
[null,null,null,null,null,null,""]
[null,null,null,null,null,null,""]
[null,null,null,null,null,null,""]
[null,null,null,null,null,null,""]
[null,null,null,null,null,null,""]
[null,null,null,null,null,null,""]
[null,null,null,null,null,null,""]
[null,null,null,null,null,null,""]
[null,null,null,null,null,null,""]
[null,null,null,null,null,null,""]
[null,null,null,null,null,null,""]
[null,null,null,null,null,null,""]
[null,null,null,null,null,null,""]
[null,null,null,null,null,null,""]
[null,null,null,null,null,null,""]
[null,null,null,null,null,null,""]
[null,null,null,null,null,null,""]
[null,null,null,null,null,null,""]
[null,null,null,null,null,null,""]
[null,null,null,null,null,null,""]
[null,null,null,null,null,null,""]
[null,null,null,null,null,null,""]
[null,null,null,null,null,null,""]
[null,null,null,null,null,null,""]
[null,null,null,null,null,null,""]
[null,null,null,null,null,null,""]
[null,null,null,null,null,null,""]
[null,null,null,null,null,null,""]
[null,null,null,null,null,null,""]
[null,null,null,null,null,null,""]
[null,null,null,null,null,null,""]
[null,null,null,null,null,null,""]
[null,null,null,null,null,null,""]
[null,null,null,null,null,null,""]
[null,null,null,null,null,null,""]
[null,null,null,null,null,null,""]
[null,null,null,null,null,null,""]
[null,null,null,null,null,null,""]
[null,null,null,null,null,null,""]
[null,null,null,null,null,null,""]
[null,null,null,null,null,null,""]
[null,null,null,null,null,null,""]
[null,null,null,null,null,null,""]
[null,null,null,null,null,null,""]
[null,null,null,null,null,null,""]
[null,null,null,null,null,null,""]
[null,null,null,null,null,null,""]
[null,null,null,null,null,null,""]
[null,null,null,null,null,null,""]
[null,null,null,null,null,null,""]
[null,null,null,null,null,null,""]
[null,null,null,null,null,null,""]
[null,null,null,null,null,null,""]
[null,null,null,null,null,null,""]
[null,null,null,null,null,null,""]
[null,null,null,null,null,null,""]
[null,null,null,null,null,null,""]
[null,null,null,null,null,null,""]
[null,null,null,null,null,null,""]
[null,null,null,null,null,null,{"$f":"IF(AND(E974=\"\",F974=\"\"),\"\",G973+F974-E974)","v":""}]
[null,null,null,null,null,null,""]
[null,null,null,null,null,null,""]
[null,null,null,null,null,null,""]
[null,null,null,null,null,null,""]
[null,null,null,null,null,null,""]
[null,null,null,null,null,null,""]
[null,null,null,null,null,null,""]
[null,null,null,null,null,null,""]
[null,null,null,null,null,null,""]
[null,null,null,null,null,null,""]
[null,null,null,null,null,null,""]
[null,null,null,null,null,null,""]
[null,null,null,null,null,null,""]
[null,null,null,null,null,null,""]
[null,null,null,null,null,null,""]
[null,null,null,null,null,null,""]
[null,null,null,null,null,null,""]
[null,null,null,null,null,null,""]
[null,null,null,null,null,null,""]
[null,null,null,null,null,null,""]
[null,null,null,null,null,null,""]
[null,null,null,null,null,null,""]
[null,null,null,null,null,null,""]
[null,null,null,null,null,null,""]
[null,null,null,null,null,null,""]
[null,null,null,null,null,null,""]
[null,null,null,null,null,null,""]
[null,null,null,null,null,null,""]
[null,null,null,null,null,null,""]
[null,null,null,null,null,null,""]
[null,null,null,null,null,null,""]
[null,null,null,null,null,null,""]
[null,null,null,null,null,null,""]
[null,null,null,null,null,null,""]
[null,null,null,null,null,null,""]
[null,null,null,null,null,null,""]
[null,null,null,null,null,null,""]
[null,null,null,null,null,null,""]
[null,null,null,null,null,null,""]
[null,null,null,null,null,null,""]
[null,null,null,null,null,null,""]
[null,null,null,null,null,null,""]
[null,null,null,null,null,null,""]
[null,null,null,null,null,null,""]
[null,null,null,null,null,null,""]
[null,null,null,null,null,null,""]
[null,null,null,null,null,null,""]
[null,null,null,null,null,null,""]
[null,null,null,null,null,null,""]
[null,null,null,null,null,null,""]
[null,null,null,null,null,null,""]
[null,null,null,null,null,null,""]
[null,null,null,null,null,null,""]
[null,null,null,null,null,null,""]
[null,null,null,null,null,null,""]
[null,null,null,null,null,null,""]
[null,null,null,null,null,null,""]
[null,null,null,null,null,null,""]
[null,null,null,null,null,null,""]
[null,null,null,null,null,null,""]
[null,null,null,null,null,null,""]
[null,null,null,null,null,null,""]
[null,null,null,null,null,null,""]
[null,null,null,null,null,null,{"$f":"IF(AND(E1038=\"\",F1038=\"\"),\"\",G1037+F1038-E1038)","v":""}]
[null,null,null,null,null,null,""]
[null,null,null,null,null,null,""]
[null,null,null,null,null,null,""]
[null,null,null,null,null,null,""]
[null,null,null,null,null,null,""]
[null,null,null,null,null,null,""]
[null,null,null,null,null,null,""]
[null,null,null,null,null,null,""]
[null,null,null,null,null,null,""]
[null,null,null,null,null,null,""]
[null,null,null,null,null,null,""]
[null,null,null,null,null,null,""]
[null,null,null,null,null,null,""]
[null,null,null,null,null,null,""]
[null,null,null,null,null,null,""]
[null,null,null,null,null,null,""]
[null,null,null,null,null,null,""]
[null,null,null,null,null,null,""]
[null,null,null,null,null,null,""]
[null,null,null,null,null,null,""]
[null,null,null,null,null,null,""]
[null,null,null,null,null,null,""]
[null,null,null,null,null,null,""]
[null,null,null,null,null,null,""]
[null,null,null,null,null,null,""]
[null,null,null,null,null,null,""]

{"sheet":"Rep3","index":7,"n_rows":5,"n_cols":7,"rows_kept":5,"cut":false,"hidden":false,"merged":[[2,0,2,5]]}
[null,null,null,null,null,"التاريخ :-",{"$f":"TODAY()","v":"2020-06-27"}]
[]
[]
["مسلسل","التاريخ","رقم السند","نوع السند","البيان","مدين","دائن"]
[{"$f":"TEXT(IF($B5=\"\",\"\",ROW()-5),\"00\")","v":"00"},"2013-12-02",250,"نقدي",null,1500.5550000000001]

{"sheet":"reb4","index":8,"n_rows":5,"n_cols":7,"rows_kept":5,"cut":false,"hidden":false,"merged":[[2,0,2,5]]}
[null,null,null,null,null,"التاريخ :-",{"$f":"TODAY()","v":"2020-06-27"}]
[]
[]
["مسلسل","التاريخ","رقم السند","نوع السند","البيان","مدين","دائن"]
[{"$f":"TEXT(IF($B5=\"\",\"\",ROW()-5),\"00\")","v":"00"},"2013-12-02",250,"نقدي",null,1500.5550000000001]